Cogmind - Beta 17.1 @@@ ROGUE MODE // 2026.09.21 @ 20:54:03 Player: Caluan Result: Self-destructed Performance ------------- Evolutions (1) 500 Regions Visited (2) 400 Robots Destroyed (32) 160 Value Destroyed (489) 489 Prototype IDs (0) 0 Alien Tech Used (0) 0 Bonus (0) 0 TOTAL SCORE: 1549 Bonus ------- None Cogmind --------- Core Integrity 308/400 Matter 246/300 Energy 29/100 System Corruption 0% Temperature Cool (0) Movement Flying (117) Ox1 Location -9/Materials Parts ------- > --- POWER (1) -------- (None) > --- PROPULSION (4) --- Flight Unit Flight Unit > --- UTILITY (2) ------ Small Storage Unit Hacking Suite > --- WEAPON (2) ------- Maul Maul > --- INVENTORY (8) ---- Hover Unit Grenade Launcher Grenade Launcher Maul Maul Peak State ------------ > --- POWER ------------ Light Ion Engine > --- PROPULSION ------- Flight Unit Flight Unit Flight Unit Flight Unit > --- UTILITY ---------- Small Storage Unit Hacking Suite > --- WEAPON ----------- Maul Maul > --- INVENTORY -------- Hover Unit Flight Unit Flight Unit Flight Unit Grenade Launcher Grenade Launcher Maul Maul [Rating: 14] Favorites ----------- Power Ion Engine Engine Ion Engine Propulsion Flight Unit Treads Light Treads Flight Unit Flight Unit Utility Small Storage Unit Storage Small Storage Unit Hackware Hacking Suite Weapon Medium Laser Energy Gun Medium Laser Ballistic Gun Light Assault Rifle Launcher Grenade Launcher Impact Weapon Maul Build | -11 -10 -9 ------- Run | Yrd Mat Mat Slots Evolved 2 | . . 2 Power . | . . . Propulsion 2 | . . 2 Utility . | . . . Weapon . | . . . Parts Attached 23 | 6 8 9 Power 2 | 1 1 . Engine 2 | 1 1 . Core . | . . . Reactor . | . . . Propulsion 10 | 2 3 5 Treads 2 | 2 . . Leg . | . . . Wheel . | . . . Hover . | . . . Flight 8 | . 3 5 Utility 2 | 1 1 . Device . | . . . Storage 1 | 1 . . Processor . | . . . Hackware 1 | . 1 . Protection . | . . . Artifact . | . . . Weapon 9 | 2 3 4 Energy Gun 2 | 2 . . Energy Cannon . | . . . Ballistic Gun 2 | . 2 . Ballistic Cannon . | . . . Launcher 2 | . 1 1 Special Weapon . | . . . Impact Weapon 3 | . . 3 Slashing Weapon . | . . . Piercing Weapon . | . . . Special Melee Weapon . | . . . Unidentified Prototypes . | . . . Parts Lost 6 | . . 6 Power 1 | . . 1 Propulsion 5 | . . 5 Utility . | . . . Weapon . | . . . Highest Loss Streak 3 | . . 3 To Critical Strikes 1 | . . 1 Average Backups 5 | 2 5 6 Power . | . . . Propulsion 3 | 1 3 3 Utility . | . . . Weapon 2 | . 2 3 Tool/Special . | . . . Unused Backups 6 | . 3 3 Power . | . . . Propulsion 3 | . 2 1 Utility . | . . . Weapon 3 | . 1 2 Tool/Special . | . . . Average Slot Usage (%) 87 | . 86 91 Engine 12 | . 14 6 Treads 13 | . 16 . Flight 17 | . 11 40 Storage 13 | . 14 11 Hackware 3 | . 1 11 Energy Gun 15 | . 19 . Ballistic Gun 7 | . 8 2 Impact Weapon 3 | . . 18 Peak Build Rating 14 | 6 9 14 Average Rating 7 | 3 6 12 On Entrance 5 | . 6 9 Avg Prop Armor Cover (%) . | . . . Naked Turns . | . . . Heaviest Build 14 | 14 14 14 Greatest Support 40 | 40 40 20 Greatest Overweight (x) 1 | . 1 1 Average Overweight (x) . | . . . Largest Inventory Capacity 8 | 8 8 8 Average Capacity 7 | 6 8 8 Most Carried 8 | 5 8 8 Average Carried 5 | 2 5 6 Final Capacity 8 | 8 8 8 Final Carried 8 | 3 8 5 Class Distribution -------------------- 84% | Mutant 15% | Sprinter Dominant Class ---------------- Mutant | -10/Materials Sprinter | -9/Materials Resources | -11 -10 -9 ----------- Run | Yrd Mat Mat Matter Collected 497 | 203 208 86 Remotely . | . . . Salvage Created 571 | . 290 281 Parts 33 | . 20 13 Haulers Intercepted 1 | . 1 . Recyclers Shooed . | . . . Parts Field Recycled . | . . . Retrieved Matter . | . . . Parts Self-Destructed . | . . . Prevented . | . . . Parts Restored . | . . . Kills | -11 -10 -9 ------- Run | Yrd Mat Mat Combat Hostiles Destroyed 23 | . 12 11 Melee 1 | . . 1 Guns 7 | . 7 . AOE 12 | . 5 7 Classes Destroyed 9 | . 6 3 Worker 2 | . . 2 Builder 2 | . . 2 Tunneler 1 | . 1 . Hauler 1 | . 1 . Operator 2 | . 1 1 Watcher 1 | . 1 . Swarmer 16 | . 9 7 Grunt 5 | . 3 2 Sentry 2 | . . 2 Best Kill Streak 13 | . 8 13 Combat Bots Only 8 | . 7 8 Max Kills in Single Turn 5 | . 4 5 Gunslinging . | . . . Exploded 4 | . 4 4 Melee 1 | . . 1 Uniques/NPCs Destroyed . | . . . Combat | -11 -10 -9 -------- Run | Yrd Mat Mat Hostile Shots Fired 87 | . 41 46 Missed 24 | . 9 15 Hits 63 | . 32 31 Projectile 63 | . 32 31 Critical Strikes 3 | . . 3 Damage Taken 729 | . 363 366 Core 195 | . 103 92 Absorbed by Shields . | . . . Core Remaining (%) 79 | 100 58 . Volleys Fired 34 | . 32 2 Largest 2 | . 2 1 Hottest 100 | . 100 30 Shots Fired 63 | . 61 2 Gun 58 | . 58 . Cannon . | . . . Launcher 5 | . 3 2 Special . | . . . Kinetic 28 | . 28 . Thermal 30 | . 30 . Explosive 5 | . 3 2 Electromagnetic . | . . . Robot Hit Streak 10 | . 10 4 Robot Miss Streak 2 | . 2 . Penetration Max . | . . . Secondary Targets 1 | . 1 . Max Gunslinging Chain 1 | . 1 . Shots Hit Robots 58 | . 43 15 Core Hits 37 | . 28 9 Critical Kills . | . . . Critical Parts Destroyed 6 | . . 6 Critical Strikes 7 | . 1 6 Burn 1 | . 1 . Smash 6 | . . 6 Melee Attacks 17 | . . 17 Impact 17 | . . 17 Slashing . | . . . Piercing . | . . . Sneak Attacks 2 | . . 2 Combat Hostiles . | . . . Follow-up Attacks 1 | . . 1 Damage Inflicted 1847 | . 873 974 Guns 437 | . 437 . Cannons . | . . . Explosions 801 | . 436 365 Melee 609 | . . 609 Ramming . | . . . Kinetic 159 | . 159 . Thermal 278 | . 278 . Explosive 801 | . 436 365 Electromagnetic . | . . . Impact 609 | . . 609 Slashing . | . . . Piercing . | . . . Highest Corruption 2 | . 2 . Average Corruption 2 | . 2 . Corruption Purged . | . . . Corruption Blocked . | . . . Effects 7 | . 7 . Message Errors 3 | . 3 . Matter Fused 2 | . 2 . Heat Flow Errors 1 | . 1 . Alerts 1 | . 1 . Overload Shots . | . . . Overflow Damage 491 | . 43 448 Projectiles 21 | . . 21 Explosions 48 | . 43 5 Melee 422 | . . 422 Knockbacks 4 | . . 4 Impact 3 | . . 3 Kinetic . | . . . Secondary 1 | . . 1 Self-Inflicted Damage 96 | . 73 23 Shots 4 | . 3 1 Rammed . | . . . Targets Rammed . | . . . Kicked . | . . . Crushed . | . . . Highest Temperature 168 | . 168 12 Average Temperature 39 | . 40 12 Received Heat Transfer 189 | . 54 135 Siege Activations . | . . . Martial Activations . | . . . Shielding Activations . | . . . Robots Disrupted . | . . . Combat Hostiles . | . . . Robots Corrupted 5 | . . 5 Combat Hostiles 3 | . . 3 Parts Fried 5 | . . 5 Impact Corruptions 14 | . . 14 Robots Melted . | . . . Combat Hostiles . | . . . Parts Melted 3 | . 3 . Heat Transferred 851 | . 851 . Parts Sabotaged . | . . . Parts Stolen . | . . . Parts Stripped . | . . . Power Chain Reactions . | . . . Alert | -11 -10 -9 ------- Run | Yrd Mat Mat Maximum Alert Level 1 | . 1 1 Low Security (%) 96 | 100 98 85 Level 1 3 | . 1 14 Level 2 . | . . . Level 3 . | . . . Level 4 . | . . . Level 5 . | . . . High Security . | . . . Max Security . | . . . Peak Influence 317 | . 204 317 Initial 48 | . . 48 Average 80 | . 84 105 Influence Increases 733 | . 344 389 Destroy 0b10 Robot/C 460 | . 240 220 Destroy 0b10 Robot/NC 45 | . 20 25 Destroy Leader 84 | . 44 40 Successful Hack 21 | . 11 10 Destroy Structure 33 | . 14 19 Partial Spotted 30 | . . 30 Lose Combat Pursuer 60 | . 15 45 Influence Decreases 426 | . 230 196 Entered New Map 66 | . . 66 Time Decay 300 | . 230 70 Lost Part 60 | . . 60 Squads Dispatched 2 | . 1 1 Investigation . | . . . Extermination . | . . . Reinforcement 2 | . 1 1 Assault . | . . . Garrison . | . . . Intercept . | . . . Searches Triggered . | . . . Construction Impeded . | . . . Haulers Reinforced . | . . . Active Scanning Responses . | . . . Cargo Convoy Interrupts . | . . . Stealth | -11 -10 -9 --------- Run | Yrd Mat Mat Distress Signals 2 | . 1 1 Communications Jammed . | . . . Distress Signals . | . . . Times Spotted 43 | . 23 20 Peak Tracking Total 8 | . 8 6 Tactical Retreats 3 | . 1 2 Traps | -11 -10 -9 ------- Run | Yrd Mat Mat Traps Triggered 2 | . 1 1 Indirectly . | . . . Trap Hack Attempts . | . . . Triggered . | . . . Disarmed . | . . . Reprogrammed . | . . . Reused . | . . . Traps Extracted . | . . . Installed . | . . . Triggered . | . . . Machines | -11 -10 -9 ---------- Run | Yrd Mat Mat Machines Disabled . | . . . Max in Single Turn . | . . . Machines Repaired . | . . . Machines Dismantled . | . . . Machines Sabotaged . | . . . Overloaded Fab Kills . | . . . Hacking | -11 -10 -9 --------- Run | Yrd Mat Mat Machines Accessed 5 | . 2 3 Terminals 4 | . 2 2 Fabricators . | . . . Repair Stations . | . . . Recycling Units . | . . . Scanalyzers 1 | . . 1 Garrison Access . | . . . Total Hacks 13 | . 7 6 Successful 7 | . 3 4 Failed 6 | . 4 2 Catastrophic 2 | . . 2 Database Lockouts . | . . . Manual 10 | . 7 3 Terminals 11 | . 7 4 Fabricators . | . . . Repair Stations . | . . . Recycling Units . | . . . Scanalyzers 2 | . . 2 Garrison Access . | . . . Terminal Hacks 1 | . 1 . Robot Analysis 1 | . 1 . Fabricator Hacks . | . . . Repair Station Hacks . | . . . Recycling Unit Hacks . | . . . Scanalyzer 2 | . . 2 Retrieve Study 2 | . . 2 Garrison Access Hacks . | . . . Unauthorized Hacks 4 | . 2 2 Terminals 4 | . 2 2 Botnet 4 | . 2 2 Fabricators . | . . . Repair Stations . | . . . Recycling Units . | . . . Scanalyzers . | . . . Garrison Access . | . . . Data Cores Recovered 1 | . . 1 Used . | . . . Hacking Detections 4 | . 2 2 Full Trace Events . | . . . Feedback Events . | . . . Feedback Blocked . | . . . Robot Schematics Acquired . | . . . Robots Built . | . . . Authchips . | . . . Time . | . . . Total Robot Build Rating . | . . . Part Schematics Acquired . | . . . Parts Built . | . . . Authchips . | . . . Time . | . . . Total Part Build Rating . | . . . Part Studies Acquired 2 | . . 2 Parts Repaired . | . . . Time . | . . . Parts Recycled . | . . . Recycled Matter . | . . . Retrieved Matter . | . . . Retrieved Components . | . . . Parts Scanalyzed . | . . . Part Schematics Acquired . | . . . Parts Damaged . | . . . Bothacking | -11 -10 -9 ------------ Run | Yrd Mat Mat Used RIF Installer . | . . . Robots Hacked . | . . . Non-combat . | . . . Combat . | . . . Robot Hacks Applied . | . . . Relay Couplers Released . | . . . Fabnet Peak Effective % . | . . . Robots Rewired . | . . . Allies Hacked . | . . . Hacks Repelled . | . . . Allies | -11 -10 -9 -------- Run | Yrd Mat Mat Total Allies . | . . . Largest Group . | . . . Highest-Rated Group . | . . . Highest-Rated Ally . | . . . Total Orders . | . . . Ally Attacks . | . . . Total Damage . | . . . Kills . | . . . Allies Corrupted . | . . . Allies Melted . | . . . Intel | -11 -10 -9 ------- Run | Yrd Mat Mat Active Infowar (turns) . | . . . Robot Analysis Total 1 | . 1 . Derelict Logs Recovered . | . . . Drone Launches . | . . . Drone Recoveries . | . . . Exploration | -11 -10 -9 ------------- Run | Yrd Mat Mat Turns Passed 910 | 82 673 155 Spaces Moved 605 | 52 375 178 Core 14 | 14 . . Treads 222 | 38 184 . Legs . | . . . Wheels . | . . . Hover . | . . . Flight 369 | . 191 178 Fastest Speed 31 | 50 117 31 Average Speed 106 | 130 138 31 Slowest Speed 160 | 160 160 117 Overloaded Moves . | . . . Propulsion Burnouts . | . . . Robots Hopped 2 | . . 2 Potential Cave-ins . | . . . Cave-ins Triggered . | . . . Exploration Rate (%) 23 | 3 48 19 Regions Visited 2 Branch Regions . Pre-discovered Areas . | . . . Known Exits Taken . | . . . Unknown Exits Taken 2 | 1 1 . Scrap Searched . | . . . Spaces Dug 1 | . . 1 Terrain Destroyed 33 | . 16 17 Melee 1 | . . 1 Projectile . | . . . AOE 32 | . 16 16 Terrain Rammed . | . . . Walls Destroyed . | . . . Machines Disabled . | . . . Actions | -11 -10 -9 --------- Run | Yrd Mat Mat Total 785 | 66 478 241 Wait 66 | . 38 28 Move 599 | 51 374 174 Hop 2 | . . 2 Pick Up 29 | 9 15 5 Fast Attach 2 | . . 2 Attach 19 | 6 5 8 Detach . | . . . Swap 8 | . 4 4 Drop 12 | . 10 2 Fire 34 | . 32 2 Melee 14 | . . 14 Ram . | . . . Kick . | . . . Crush . | . . . Escape Stasis . | . . . Rewire . | . . . Trap . | . . . Miscellaneous . | . . . Route ------- -11/Scrapyard -10/Materials -9/Materials (discovered 2 exits: [*Mat] / [*Sto]) History --------- Turn | Location | Event 6 | -11/Scrapyard | Discovered new exit (range 15) 83 | -11/Scrapyard | Entered Materials 357 | -10/Materials | Build established: Mutant 377 | -10/Materials | Destroyed 7 combat bots 393 | -10/Materials | Discovered new exit (range 16) 756 | -10/Materials | Entered another Materials area 756 | -9/Materials | Evolved 2 slots: Propulsion x2 758 | -9/Materials | Discovered new exit (range 15) 886 | -9/Materials | Discovered new exit (range 13) 911 | -9/Materials | Self-destructed Last Messages --------------- 00892_ R-06 Scavenger collects Flight Unit+. 00893_ Y-45 Defender system terminally corrupted. 00893_ Imp. Ion Engine fried. 00894_ U-05 Engineer lays Concrete. 00895_ Flight Unit+ destroyed. 00896_ U-05 Engineer lays Concrete. 00896_ S-10 Pest destroyed. 00896_ Destroyed Flight Unit. 00896_ S-10 Pest destroyed. 00896_ U-05 Engineer destroyed. 00896_ R-06 Scavenger collects Lgt. Assault Rifle. 00898_ Acquired 32 matter. 00899_ R-06 Scavenger collects Med. Matter Pod. 00902_ U-05 Engineer builds a Wall. 00906_ R-06 Scavenger collects Flight Unit+. 00906_ R-06 Scavenger collects Welding Torch. 00911_ U-05 Engineer builds a Wall. 00911_ Flight Unit+ destroyed. Map ----- +----------------------------------------------------+ | ?????????????????????????????????????????????????? | | ?????????????????????????????????????????????????? | | ?????????????????????????????????????????????????? | | ?????????????????????????????????????????????????? | | ?????????????????????????????????????????????????? | | ????????????????????????????????????????????###### | | ????????????????????????????????????????????# | | ????????????????????????????????????????##### | | ????????????????????????????????????????+ < | | ????????????????????????????????????????##### | | ????????????????????????????????? | | ?????????????????????????????????????##########+## | | ??????????????????????????????????????????# | | ??????????????????????????????????#???????# "" | | ????????????????????????????????? ?????# "" | | ????????????????????????????????? ?????# "" | | ????????????????????????#######? ????# "S | | ???????????????????????? #? ?????# """ [ | | ????????????????????????? # ???????# "" | | ????????????????????????? # ????????# | | ?????????????????????????##u ?????????####/### | | ?????????????????????????## ##+#########??# #?? | | ?????????????????######### # ??# #?? | | ?????????????????# "" ??# ### | | ?????????????????# "" "Y |] ?# ## | | ?????????????????# """@# | "" |] ## ## | | ?????????????????# S" = !] + + | | ?????????????????# !s ## ## | | ?????????????????# """ = #### ####?### ## | | ?????????????????# """ # ############## # | | ?????????????????? """ # % # | | ?????????????????? # " =+ | | ?????????????????########## ############## # | | ??????????????????????????# #?????????##?## ### | | ??????????????????????????# #?????????????# #?? | | ??????????????????????????# #?????????????# #?? | | ??????????????????????????# #?????????????# #?? | | ??????????????????????????# #?????????????#^ #?? | | ??????????????????????????# #?????????????# #?? | | ??????????????????????????# #?????????????#^^#?? | | ??????????????????????????# #?????????????+ #?? | | ??????????????????????????+ #?????????????# #?? | | ??????????????????????????# #?????????????# #?? | | ??????????????????????????# < ?????????????? ?? | | ??????????????????????????# ?????????????? ?? | | ??????????????????????????####?????????????? ?? | | ???????????????????????????????????????????# ?? | | ???????????????????????????????????????????##+###? | | ?????????????????????????????????????????????????? | | ?????????????????????????????????????????????????? | +----------------------------------------------------+ Best States ------------- Heat Dissipation 28 Energy Generation 10 Energy Capacity 250 Matter Stores 300 Matter Capacity 300 Sight Range 16 Terrain Scan Density 10 Evasion (%) 63 Recoil Reduction 2 Offensive Hacking 10 Item Schematics ----------------- None Robot Schematics ------------------ None Fabricated ------------ Nothing Repaired ---------- Nothing Studied --------- Maul | -9/Materials | Hacked Flight Unit | -9/Materials | Hacked Alien Tech Used ----------------- None Achievements -------------- None Challenges ------------ None Game ------ Seed ForceGuidanceCartridge Manual? 0 Play Time 00:09:17 Cumulative 313.7 hours Start 2026.09.21 @ 20:45:38 End 2026.09.21 @ 20:54:03 Sessions 1 Manual Loads 0 Difficulty Rogue Special Mode None Game No. 346 Rogue 346 Adventurer 0 Explorer 0 Win Type - Total 3 Types 3/0/0/0/0/0/0/0/0/0 Lore% 51 Gallery% 59 Achievement% 46 Wizard Run 0 Options --------- Layout 1 ASCII 0 Keyboard 0 Movement Numpad Keybinds 0 Fullscreen 2 Font 24/Smallcaps Map View 50x35 Zoom Use 0% Tactical HUD 1 Map Filters NONE Filters NONE Steam 1 RUN: a6609c29-ebe7-4853-b7eb-a541ca20897a